bitfinex/quotes_ETHUSD_20240718
["timestamp","ask_amount","ask_price","bid_price","bid_amount"]
[1721338108146,2.33850001,3425.0,3424.9,0.55]
[1721338108332,2.33850001,3425.0,3424.8,3.46987]
[1721338112289,2.33850001,3425.0,3424.8,0.55]
[1721338112454,2.33850001,3425.0,3424.7,3.46995]
[1721338113771,2.33850001,3425.0,3424.4,0.61351964]
[1721338114092,2.57235001,3425.0,3424.4,3.0]
[1721338114386,2.424,3424.9,3424.4,3.0]
[1721338119061,2.424,3424.9,3424.2,3.0]
[1721338119365,2.424,3424.9,3424.3,0.55]
[1721338119586,2.88159468,3424.9,3424.3,0.55]
[1721338120504,2.88159468,3424.9,3424.2,3.0]
[1721338120706,2.3813,3424.8,3424.0,5.92055]
[1721338120991,2.3813,3424.8,3424.1,0.55]
[1721338121901,2.3813,3424.8,3424.1,3.47047]
[1721338122195,2.3813,3424.8,3424.2,3.0]
[1721338124310,2.3813,3424.8,3424.1,0.55]
[1721338126396,2.3813,3424.8,3424.1,3.47042]
[1721338126555,2.3813,3424.8,3424.2,3.0]
[1721338127727,3.2203,3424.8,3424.1,0.55]
[1721338128005,2.2953,3424.7,3424.1,0.55]
[1721338128163,2.2953,3424.7,3424.0,0.55]
[1721338128359,2.2953,3424.5,3423.9,0.55]
[1721338129399,2.2953,3424.5,3423.8,10.36]
[1721338129697,2.2953,3424.5,3423.8,7.44]
[1721338130662,0.839,3424.4,3423.6,2.92084]
[1721338130997,2.2953,3424.3,3423.6,2.92084]
[1721338131899,2.2953,3424.3,3423.4,2.92102]
[1721338132106,0.45759468,3424.9,3423.5,6.8109]
[1721338132306,0.839,3424.7,3424.0,2.92051]
[1721338132599,0.839,3424.7,3423.7,0.839]
[1721338132600,2.2953,3424.8,3424.2,2.92033]
[1721338132798,2.2953,3424.8,3424.1,0.55]
[1721338132799,0.45759468,3424.9,3424.6,2.92]
[1721338132969,0.45759468,3424.9,3424.8,2.91987]
[1721338133168,0.45759468,3424.9,3424.8,3.46987]
[1721338133371,0.45759468,3424.9,3424.8,6.38974]
[1721338138410,2.4834,3425.3,3425.0,2.91967]
[1721338138630,0.839,3425.4,3425.0,2.91967]
[1721338139240,0.839,3425.4,3424.8,3.46981]
[1721338139533,0.839,3425.4,3425.0,2.91968]
[1721338140831,0.839,3425.4,3425.1,2.91961]
[1721338141332,0.839,3425.4,3425.0,2.91968]
[1721338141635,0.839,3425.2,3425.0,2.91968]
[1721338143097,0.839,3425.2,3424.9,2.91978]
[1721338144440,0.839,3425.2,3425.0,2.91969]
[1721338146312,0.839,3425.2,3425.1,2.91962]
[1721338146914,0.839,3425.4,3425.1,2.91962]
[1721338147754,0.839,3425.2,3425.0,2.91966]
[1721338148836,0.839,3425.4,3425.1,2.9196]
[1721338149643,0.839,3425.4,3425.0,2.9197]
[1721338155260,2.4688,3425.6,3425.0,2.9197]
[1721338155433,0.839,3425.3,3425.0,2.9197]
[1721338161277,2.3286,3425.2,3425.0,2.9197]
[1721338179421,2.3286,3425.2,3424.8,2.91983]
[1721338179715,2.3286,3425.2,3424.8,2.91981]
[1721338181311,2.3286,3425.2,3424.8,5.83962]
[1721338181522,2.3286,3425.2,3424.8,2.91981]
[1721338183220,3.1676,3425.2,3424.8,5.83963]
[1721338183607,3.1676,3425.2,3424.8,2.91981]
[1721338188623,2.64536,3425.2,3424.8,2.91981]
[1721338188825,0.839,3425.0,3424.8,2.91981]
[1721338190791,0.839,3425.0,3424.6,2.91998]
[1721338191126,0.839,3425.0,3424.7,2.91995]
[1721338196015,0.839,3425.0,3424.6,2.91997]
[1721338200950,2.2749,3424.9,3424.4,5.84032]
[1721338201150,2.2749,3424.9,3424.4,2.92013]
[1721338201151,0.839,3424.8,3424.4,2.92013]
[1721338201940,0.839,3424.8,3424.2,2.92034]
[1721338203762,0.839,3424.6,3424.2,2.92034]
[1721338212737,2.371,3424.5,3424.2,2.92034]
[1721338213647,2.371,3424.5,3424.0,2.92049]
[1721338214740,0.839,3424.4,3424.1,2.92044]
[1721338214939,1.16,3424.4,3424.0,2.92049]
[1721338216177,1.16,3424.4,3423.6,5.34884]
[1721338216370,2.3457,3424.1,3423.6,2.92084]
[1721338216802,2.3457,3424.1,3423.4,2.92099]
[1721338216970,0.839,3424.0,3423.4,2.92099]
[1721338222310,2.3457,3424.1,3423.4,2.92099]
[1721338222492,0.839,3424.0,3423.4,2.92099]
[1721338223596,1.15747,3424.0,3423.4,2.92099]
[1721338226214,2.315,3423.9,3423.4,2.92099]
[1721338226707,0.839,3423.8,3423.4,2.92099]
[1721338227917,0.839,3423.8,3423.1,2.92131]
[1721338228125,0.839,3423.4,3422.9,2.92142]
[1721338228300,2.383,3423.3,3422.9,2.92142]
[1721338228497,2.383,3423.3,3422.5,5.84358]
[1721338228498,0.839,3423.2,3422.5,5.84358]
[1721338228699,0.839,3423.2,3422.5,2.92177]
[1721338231125,0.839,3423.0,3422.5,2.92177]
[1721338235935,0.839,3423.0,3422.3,2.92196]
[1721338236111,2.4189,3422.7,3422.3,2.92196]
[1721338240400,2.4189,3422.7,3422.1,5.84423]
[1721338240607,2.4189,3422.7,3422.2,2.92209]
[1721338241904,2.3708,3423.5,3422.4,2.4065]
[1721338242132,0.839,3423.3,3422.9,5.84287]
[1721338242335,0.839,3423.3,3423.0,2.92139]
[1721338245934,2.3708,3423.5,3423.0,2.92139]
[1721338246137,0.839,3423.3,3423.2,2.92124]
[1721338246340,2.4046,3423.7,3423.2,2.92124]
[1721338246540,0.839,3423.4,3423.3,2.92115]
[1721338247463,2.4046,3423.7,3423.4,2.92107]
[1721338247629,0.839,3423.7,3423.3,2.92115]
[1721338247816,0.839,3423.7,3423.5,2.92093]
[1721338248149,0.839,3423.7,3423.3,2.92107]
[1721338248849,0.839,3423.7,3423.4,2.92102]
[1721338249217,0.839,3423.7,3423.5,2.92098]
[1721338249665,2.4335,3424.3,3423.5,2.92098]
[1721338249832,0.839,3423.9,3423.7,2.92075]
[1721338251967,0.839,3423.9,3423.7,5.84149]
[1721338252319,0.839,3423.9,3423.7,2.92075]
[1721338252958,0.27545,3424.2,3423.7,5.8415]
[1721338253156,0.839,3423.9,3423.7,2.92075]
[1721338254022,0.27545,3424.2,3423.7,2.92075]
[1721338254231,0.839,3424.0,3423.7,2.92076]
[1721338256222,0.839,3424.0,3423.8,2.92072]
[1721338257766,2.4335,3424.3,3423.8,2.92066]
[1721338257940,0.839,3424.1,3423.8,2.92066]
[1721338261781,2.4333,3424.0,3423.6,2.92085]
[1721338262081,0.839,3423.7,3423.3,2.92114]
[1721338262959,2.4333,3424.0,3423.5,2.92094]
[1721338263173,0.839,3423.8,3423.7,2.92081]
[1721338263358,2.3103,3424.8,3423.9,2.92059]
[1721338263686,0.839,3424.3,3424.1,2.92042]
[1721338268355,2.3103,3424.8,3424.1,2.92042]
[1721338268554,2.3103,3424.8,3424.2,2.92033]
[1721338268555,0.839,3424.4,3424.2,2.92033]
[1721338269418,0.839,3424.4,3424.3,2.9203]
[1721338278213,2.3103,3424.8,3424.3,2.9203]
[1721338278415,0.839,3424.5,3424.3,2.9203]
[1721338278725,0.839,3424.6,3424.3,2.9203]
[1721338282830,2.3103,3424.8,3424.2,2.92038]
[1721338282831,0.839,3424.4,3424.2,2.92038]
[1721338283792,2.3787,3424.3,3423.4,2.3229]
[1721338284107,0.839,3424.2,3423.4,5.3229]
[1721338284338,0.839,3424.2,3423.9,2.92063]
[1721338285363,0.839,3424.2,3423.7,2.92073]
[1721338285919,0.839,3424.2,3423.7,5.84146]
[1721338286118,0.839,3424.2,3423.8,2.9207]
[1721338287738,2.2684,3424.7,3424.2,2.92038]
[1721338287946,0.839,3424.4,3424.2,2.92038]
[1721338289727,2.3763,3425.1,3424.2,2.92038]
[1721338289928,0.839,3424.5,3424.2,2.92038]
[1721338301641,2.3998,3425.0,3424.2,5.40608]
[1721338301875,0.839,3424.5,3424.2,5.40608]
[1721338302084,0.839,3424.6,3424.4,2.92021]
[1721338303686,2.9194,3425.4,3423.8,2.92069]
[1721338303687,2.2702,3425.4,3424.6,2.3795]
[1721338303846,0.839,3425.0,3424.8,2.91986]
[1721338307607,2.4273,3425.6,3424.8,2.91986]
[1721338307766,0.839,3425.3,3425.0,2.9197]
[1721338308971,0.839,3425.2,3425.0,2.9197]
[1721338309374,0.839,3425.2,3425.0,5.83935]
[1721338310300,0.839,3425.2,3425.0,2.91965]
[1721338313807,0.839,3425.4,3425.1,2.91955]
[1721338314301,5.4387,3426.0,3425.2,2.9195]
[1721338314462,0.839,3425.4,3425.2,2.9195]
[1721338316406,5.4387,3426.0,3425.2,2.9195]
[1721338316718,0.839,3425.4,3425.2,2.9195]
[1721338324912,0.839,3425.4,3425.0,5.83926]
[1721338325073,0.839,3425.4,3425.0,5.83927]
[1721338325997,0.839,3425.4,3425.0,2.91963]
[1721338328204,0.839,3425.2,3425.0,2.91963]
[1721338329516,0.839,3425.2,3424.8,2.91984]
[1721338329725,3.2488,3425.2,3424.6,10.35997]
[1721338330023,3.2488,3425.2,3424.7,2.91996]
[1721338336602,0.839,3425.2,3424.7,2.91996]
[1721338340736,0.839,3425.2,3424.8,2.91986]
[1721338345805,3.1732,3425.2,3424.8,2.91986]
[1721338346748,0.839,3425.2,3424.8,2.91986]
[1721338348654,2.3274,3425.5,3424.9,2.4449]
[1721338348853,0.839,3425.4,3425.1,2.91962]
[1721338349146,2.3274,3425.5,3424.8,2.91983]
[1721338349147,0.839,3425.2,3424.8,2.91983]
[1721338349619,2.3274,3425.1,3424.8,2.91983]
[1721338351543,0.839,3425.2,3424.8,5.83965]
[1721338351746,0.839,3425.2,3424.8,2.91982]
[1721338364777,2.4907,3425.8,3424.9,2.4209]
[1721338364979,0.839,3425.3,3425.1,2.91956]
[1721338379853,0.839,3425.3,3424.9,2.91979]
[1721338380069,3.2661,3425.3,3424.9,2.91979]
[1721338380284,3.2661,3425.3,3424.7,2.91994]
[1721338380285,3.2661,3425.3,3424.7,5.83979]
[1721338380591,0.839,3425.1,3424.7,2.91988]
[1721338380775,0.839,3425.1,3424.5,8.11443]
[1721338380966,0.839,3425.1,3424.6,2.92003]
[1721338381485,0.839,3424.9,3424.5,2.92005]
[1721338385515,3.3307,3424.9,3424.5,2.92005]
[1721338387906,0.839,3424.9,3424.5,2.92005]
[1721338391569,0.839,3424.9,3424.3,8.84051]
[1721338391882,0.839,3424.9,3424.4,2.92021]
[1721338392094,0.839,3424.9,3424.3,5.92023]
[1721338392284,0.839,3424.9,3424.4,2.9202]
[1721338394212,0.839,3424.9,3424.5,2.92012]
[1721338395713,3.0962,3425.1,3424.5,2.92012]
[1721338396599,3.0962,3425.1,3424.5,5.8402]
[1721338396796,3.0962,3425.1,3424.5,2.92008]
[1721338397212,3.0962,3425.1,3424.6,2.92003]
[1721338400538,3.0962,3425.1,3424.7,2.91995]
[1721338417158,3.0962,3425.1,3424.7,2.9199]
[1721338438533,3.55379317,3425.1,3424.7,2.9199]
[1721338443262,0.45759317,3425.1,3424.9,2.91973]
[1721338443462,1.29659317,3425.1,3424.9,2.91973]
[1721338443978,0.45759317,3425.1,3425.0,2.9197]
[1721338444278,0.839,3425.4,3425.1,2.91959]
[1721338446286,0.839,3425.2,3425.1,2.91959]
[1721338450593,2.3067,3426.1,3425.1,0.55]
[1721338450872,2.3067,3426.1,3425.6,2.91917]
[1721338450873,0.839,3425.8,3425.6,2.91917]
[1721338451952,0.839,3425.8,3425.7,2.91911]
[1721338452738,0.839,3426.0,3425.7,2.91911]
[1721338457055,0.34623795,3426.7,3425.3,2.91938]
[1721338457056,3.1606,3425.8,3425.3,2.91938]
[1721338457262,0.839,3425.6,3425.3,2.91938]
[1721338457480,0.839,3425.6,3425.1,2.91958]
[1721338457481,0.839,3425.4,3425.1,5.83912]
[1721338457663,0.839,3425.4,3425.1,2.91954]
[1721338458975,0.839,3425.4,3424.9,2.91973]
[1721338459958,0.839,3425.4,3425.0,2.9197]
[1721338460695,2.2934,3425.3,3425.0,2.9197]
[1721338461191,2.2934,3425.3,3424.3,3.75929]
[1721338461192,0.839,3425.2,3424.5,2.92009]
[1721338461396,0.839,3425.2,3424.6,3.55]
[1721338462498,0.839,3425.2,3424.7,2.91995]
[1721338469808,0.839,3425.2,3424.7,5.83984]
[1721338472215,0.839,3425.2,3424.8,2.91987]
[1721338473922,2.2885,3425.1,3424.8,2.91987]
[1721338475389,2.2885,3425.1,3424.7,2.91996]
[1721338478407,0.839,3425.0,3424.7,2.91996]
[1721338479705,0.839,3425.0,3424.5,2.92008]
[1721338485057,0.839,3424.8,3424.2,3.0]
[1721338485363,0.839,3424.6,3424.1,2.92044]
[1721338485530,2.4347,3424.5,3424.1,2.92044]
[1721338487452,0.839,3424.4,3424.0,2.92053]
[1721338490059,0.839,3424.4,3424.1,2.92047]
[1721338490762,0.839,3424.4,3424.1,5.38727]
[1721338492565,0.839,3424.4,3424.1,2.4668]
[1721338492769,0.839,3424.4,3424.2,2.92037]
[1721338496838,3.2392,3424.4,3424.2,2.92037]
[1721338497187,0.839,3424.4,3424.2,2.92037]
[1721338497379,0.839,3424.4,3424.3,2.9203]
[1721338504618,0.839,3424.4,3423.6,7.44]
[1721338504827,0.32601,3424.3,3423.9,2.92056]
[1721338504996,2.3187,3424.2,3424.0,2.9205]
[1721338505195,2.3187,3424.2,3423.8,2.92072]
[1721338505693,2.3187,3424.2,3423.9,2.92062]
[1721338505894,0.839,3424.1,3423.7,2.92076]
[1721338506221,2.4016,3423.8,3423.7,2.92076]
[1721338507422,3.2406,3423.8,3423.7,2.92076]
[1721338507922,3.2406,3423.8,3423.5,2.92092]
[1721338508129,0.839,3423.6,3423.5,2.92092]
[1721338509587,0.839,3423.6,3423.2,10.36116]
[1721338509588,0.839,3423.6,3423.3,2.9211]
[1721338509784,0.839,3423.4,3423.3,2.9211]
[1721338514404,0.839,3423.4,3422.7,10.36159]
[1721338514405,0.839,3423.4,3423.0,2.92134]
[1721338515038,0.839,3423.4,3422.8,2.92154]
[1721338515219,0.839,3423.4,3423.0,2.92135]
[1721338515541,2.315,3423.3,3423.0,2.92135]
[1721338515752,0.839,3423.2,3423.0,2.92135]
[1721338518252,2.315,3423.3,3423.0,2.92135]
[1721338518434,0.839,3423.2,3423.0,2.92135]
[1721338519356,0.839,3423.2,3422.8,5.84305]
[1721338519857,0.839,3423.0,3422.8,2.92151]
[1721338525256,2.3001,3422.9,3422.4,2.92187]
[1721338525430,0.839,3422.5,3422.4,2.92187]
[1721338527334,3.1011,3422.5,3422.0,2.92219]
[1721338527639,0.839,3422.3,3422.1,2.9221]
[1721338528032,0.839,3422.3,3422.2,2.92209]
[1721338528350,0.839,3422.3,3422.0,2.92219]
[1721338528565,0.839,3422.3,3422.0,5.84438]
[1721338529268,0.839,3422.3,3422.0,2.92219]
[1721338529642,2.2621,3422.5,3422.0,2.92219]
[1721338529643,0.839,3422.1,3422.0,2.92219]
[1721338530277,0.839,3422.1,3421.8,2.9224]
[1721338530443,0.839,3421.9,3421.8,2.9224]
[1721338531469,0.839,3421.9,3421.6,10.36253]
[1721338532171,0.839,3421.9,3421.6,13.28507]
[1721338532376,0.839,3421.9,3421.6,10.36253]
[1721338532574,0.839,3421.7,3421.6,10.36253]
[1721338533446,0.839,3421.7,3421.6,7.44]
[1721338534046,0.1874,3422.1,3421.6,7.44]
[1721338534247,0.839,3421.7,3421.6,7.44]
[1721338535563,0.839,3421.7,3421.5,2.92269]
[1721338535886,0.839,3421.7,3421.4,2.92276]
[1721338536074,0.839,3421.5,3421.4,2.92276]
[1721338542384,0.839,3421.5,3421.0,13.28612]
[1721338542577,0.839,3421.3,3421.0,5.84612]
[1721338542738,0.839,3421.3,3421.0,2.92304]
[1721338543746,0.839,3421.3,3421.0,5.84609]
[1721338544090,0.839,3421.3,3421.0,2.92304]
[1721338545362,0.839,3421.1,3421.0,2.92304]
[1721338546058,0.839,3421.1,3420.8,2.92324]
[1721338548286,2.3903,3421.6,3420.8,2.92324]
[1721338548472,0.839,3421.0,3420.8,2.92324]
[1721338551407,0.839,3421.6,3421.4,2.92273]
[1721338554297,0.839,3421.6,3421.5,2.92269]
[1721338557809,0.839,3421.6,3421.3,2.92279]
[1721338560004,0.839,3421.6,3421.3,5.84559]
[1721338560392,0.839,3421.6,3421.4,2.92276]
[1721338569028,2.4557,3422.1,3421.6,2.9226]
[1721338569207,3.0,3422.3,3421.7,2.92249]
[1721338569408,5.3913,3422.4,3421.7,2.92249]
[1721338569636,0.839,3421.8,3421.7,2.92249]
[1721338578346,0.839,3422.0,3421.8,2.92243]
[1721338578543,0.839,3422.0,3421.9,2.92234]
[1721338579244,3.0,3422.5,3421.9,2.92234]
[1721338579440,0.839,3422.0,3421.9,2.92234]
[1721338582459,0.839,3422.0,3421.9,5.84469]
[1721338591710,3.0,3422.5,3422.1,2.92215]
[1721338591909,0.839,3422.2,3422.1,2.92215]
[1721338598969,0.839,3422.2,3422.0,2.92224]
[1721338599123,3.2406,3422.2,3422.0,2.92224]
[1721338601384,3.2406,3422.2,3421.9,2.92234]
[1721338601590,0.839,3422.0,3421.9,2.92234]
[1721338616941,0.839,3422.0,3421.9,5.22084]
[1721338617500,0.839,3422.0,3421.9,2.92234]
[1721338617931,0.839,3422.2,3422.0,2.92223]
[1721338632474,0.839,3422.2,3422.1,2.92218]
[1721338632959,3.0,3422.5,3421.7,2.3296]
[1721338633165,0.839,3422.6,3422.4,2.92192]
[1721338633390,0.839,3422.6,3422.5,2.92184]
[1721338634074,0.45798457,3422.7,3422.6,5.8435]
[1721338634592,0.839,3422.9,3422.8,5.84316]
[1721338634779,0.839,3422.9,3422.8,8.25226]
[1721338635599,2.4278,3423.6,3423.1,2.92129]
[1721338635773,0.839,3423.2,3423.1,2.92129]
[1721338637016,2.3469,3423.8,3423.1,2.92129]
[1721338637218,0.839,3423.2,3423.1,2.92129]
[1721338640587,3.1789,3423.2,3423.1,2.92129]
[1721338640989,3.1789,3423.2,3422.6,2.92167]
[1721338641208,2.3399,3423.2,3422.7,2.9216]
[1721338641443,0.839,3422.8,3422.7,2.9216]
[1721338643840,2.4042,3422.7,3422.2,2.92204]
[1721338644041,0.839,3422.3,3422.2,2.92204]
[1721338644647,0.839,3422.3,3422.0,5.84442]
[1721338644810,0.839,3422.1,3421.8,2.92238]
[1721338645013,0.839,3421.9,3421.8,2.92238]
[1721338649841,0.839,3421.9,3421.7,2.3296]
[1721338652222,2.4186,3422.2,3421.7,2.3296]
[1721338652467,0.839,3422.0,3421.7,2.3296]
[1721338655348,0.839,3422.0,3421.8,2.3233]
[1721338655685,0.839,3422.0,3421.7,2.3296]
[1721338655985,0.839,3421.8,3421.7,2.3296]
[1721338663383,0.376126,3421.9,3421.7,2.3296]
[1721338663763,0.839,3421.8,3421.7,2.3296]
[1721338678374,0.839,3421.8,3421.7,7.74722]
[1721338679871,0.839,3421.8,3421.7,5.25212]
[1721338682430,0.839,3421.8,3421.7,7.63042]
[1721338683028,3.0,3422.5,3422.0,2.92225]
[1721338683215,3.0,3422.6,3422.1,5.30047]
[1721338683531,3.0,3422.9,3422.1,5.30047]
[1721338683719,0.85499007,3422.8,3422.1,5.30047]
[1721338684132,0.85499007,3422.8,3422.2,2.92205]
[1721338684329,0.839,3422.3,3422.2,2.92205]
[1721338689941,2.3233,3423.0,3422.3,2.92201]
[1721338690141,0.839,3422.5,3422.4,5.39952]
[1721338691532,3.0,3423.1,3422.4,5.39952]
[1721338691738,0.839,3422.5,3422.4,5.39952]
[1721338698147,0.45792732,3422.8,3422.4,5.39952]
[1721338698346,0.839,3422.5,3422.4,5.39952]
[1721338703032,0.45792732,3422.8,3422.6,2.92175]
[1721338703227,0.839,3422.7,3422.6,2.92175]
[1721338703633,0.45792732,3422.8,3422.7,2.92167]
[1721338703859,1.29692732,3422.8,3422.7,2.92167]
[1721338704165,0.45792732,3422.8,3422.7,5.84334]
[1721338704528,0.839,3422.9,3422.8,2.92158]
[1721338705031,0.45786146,3423.3,3423.1,2.92126]
[1721338705235,0.839,3423.2,3423.1,2.92126]
[1721338717999,0.839,3423.2,3423.1,5.28866]
[1721338723507,0.839,3423.2,3423.1,8.20998]
[1721338727808,0.839,3423.4,3423.3,2.92109]
[1721338728009,3.46942269,3423.9,3423.4,2.92104]
[1721338728324,0.839,3423.5,3423.4,2.92104]
[1721338731295,3.46942269,3423.9,3423.4,2.92104]
[1721338731500,0.839,3423.5,3423.4,2.92104]
[1721338733613,3.46942269,3423.9,3423.6,2.92087]
[1721338733927,0.46942269,3423.9,3423.6,5.84171]
[1721338734126,0.839,3423.7,3423.6,2.92084]
[1721338735133,0.46933348,3423.9,3423.6,2.92084]
[1721338735289,0.839,3423.7,3423.6,2.92084]
[1721338738948,1.29676667,3423.7,3423.6,2.92084]
[1721338745826,0.839,3423.7,3423.6,2.92084]
[1721338746227,1.29674522,3423.7,3423.6,2.92084]
[1721338747625,1.29674522,3423.7,3423.6,5.84174]
[1721338757067,1.29674522,3423.7,3423.6,2.92084]
[1721338757272,1.29674522,3423.7,3423.4,2.92106]
[1721338760868,1.29674522,3423.7,3423.2,5.84235]
[1721338761103,1.29674522,3423.7,3423.3,2.92114]
[1721338764010,0.839,3423.5,3423.2,2.92116]
[1721338764408,0.83832642,3423.7,3423.0,7.44]
[1721338764409,0.839,3423.3,3423.0,7.44]
[1721338764717,0.839,3423.1,3422.8,2.92151]
[1721338764918,0.839,3422.9,3422.6,2.92172]
[1721338765135,0.839,3422.9,3422.5,2.4228]
[1721338765346,0.839,3422.7,3422.1,7.44]
[1721338765571,0.05891229,3423.4,3421.9,2.92234]
[1721338765572,0.839,3422.2,3421.9,2.92234]
[1721338766031,0.839,3422.0,3421.9,2.92234]
[1721338771533,0.839,3422.0,3421.7,5.25212]
[1721338771895,0.839,3422.0,3421.7,2.3296]
[1721338772419,0.839,3421.8,3421.7,2.3296]
[1721338773928,1.460268,3421.8,3421.7,2.3296]
[1721338776529,0.839,3421.8,3421.7,2.3296]
[1721338784068,3.76143,3421.8,3421.7,2.3296]
[1721338786474,0.839,3421.8,3421.7,2.3296]
[1721338790293,3.76143,3421.8,3421.7,2.3296]
[1721338790445,2.92243,3421.8,3421.7,2.3296]
[1721338790641,4.291963,3421.8,3421.7,2.3296]
[1721338790989,7.291963,3421.8,3421.7,2.3296]
[1721338793395,6.452963,3421.8,3421.7,2.3296]
[1721338793567,7.291963,3421.8,3421.7,2.3296]
[1721338794479,9.588063,3421.8,3421.7,2.3296]
[1721338797759,8.749063,3421.8,3421.7,2.3296]
[1721338797963,9.588063,3421.8,3421.7,2.3296]
[1721338798205,8.749063,3421.8,3421.7,2.3296]
[1721338798379,3.530533,3421.8,3421.7,2.3296]
[1721338798564,0.839,3421.8,3421.7,2.3296]
[1721338798991,5.92228,3422.0,3421.7,2.3296]
[1721338799217,3.1878,3421.8,3421.7,2.3296]
[1721338799380,3.839,3421.8,3421.7,2.3296]
[1721338799769,0.839,3421.8,3421.7,2.3296]
[1721338800169,2.4498,3422.8,3421.7,2.3296]
[1721338800377,2.92208,3422.3,3421.7,2.3296]
[1721338800583,3.48942052,3422.7,3421.7,5.25212]
[1721338800804,2.92188,3422.5,3421.8,2.92237]
[1721338800969,2.92199,3422.4,3421.7,2.3296]
[1721338801164,0.839,3421.9,3421.7,2.3296]
[1721338802070,0.839,3421.8,3421.7,2.3296]
[1721338814458,1.29704641,3421.8,3421.7,2.3296]
[1721338814743,0.839,3421.8,3421.7,2.3296]
[1721338814955,1.29704565,3421.8,3421.7,2.3296]
[1721338815711,4.93363122,3421.8,3421.7,2.3296]
[1721338819958,7.93363122,3421.8,3421.7,2.3296]
[1721338824842,7.93363122,3421.8,3421.7,2.1796]
[1721338828855,10.22563122,3421.8,3421.7,2.1796]
[1721338832370,13.22631915,3421.8,3421.7,2.1796]
[1721338837855,10.93431915,3421.8,3421.7,2.1796]
[1721338846507,10.09531915,3421.8,3421.7,2.1796]
[1721338846709,10.93431915,3421.8,3421.7,2.1796]
[1721338872995,10.09531915,3421.8,3421.7,2.1796]
[1721338873289,10.93431915,3421.8,3421.7,2.1796]
[1721338894015,10.4762735,3421.8,3421.7,2.1796]
[1721338898314,9.76211793,3421.8,3421.7,4.54]
[1721338901229,3.91725793,3421.8,3421.7,4.54]
[1721338902212,0.91725793,3421.8,3421.7,4.54]
[1721338902418,3.83968793,3421.8,3421.7,4.54]
[1721338902717,6.83968793,3421.8,3421.7,4.54]
[1721338908689,3.91725793,3421.8,3421.7,4.54]
[1721338908933,0.91725793,3421.8,3421.7,4.54]
[1721338909096,3.91725793,3421.8,3421.7,4.54]
[1721338909295,0.91725793,3421.8,3421.7,4.54]
[1721338918395,3.83968793,3421.8,3421.7,2.1796]
[1721338918716,7.81588772,3421.8,3421.7,2.1796]
[1721338919898,10.73831772,3421.8,3421.7,2.1796]
[1721338923334,9.76211793,3421.8,3421.7,2.1796]
[1721338928442,10.22018751,3421.8,3421.7,2.1796]
[1721338933146,4.37532751,3421.8,3421.7,2.1796]
[1721338933850,10.22018751,3421.8,3421.7,2.1796]
[1721338947371,13.14261751,3421.8,3421.7,2.1796]
[1721338947571,14.68740926,3421.8,3421.7,2.1796]
[1721338972760,17.13820926,3421.8,3421.7,2.1796]
[1721338974765,14.68740926,3421.8,3421.7,2.1796]
[1721338977484,17.03810926,3421.8,3421.7,2.1796]
[1721338979005,17.60983926,3421.8,3421.7,2.1796]
[1721338979573,20.10883926,3421.8,3421.7,2.1796]
[1721338982500,5.84606,3421.1,3421.0,2.4112]
[1721338982668,9.68506,3421.1,3421.0,2.4112]
[1721338982869,9.75194134,3421.1,3421.0,2.4112]
[1721338987478,12.67497134,3421.1,3421.0,2.4112]
[1721338988411,2.92351,3420.6,3419.9,2.272]
[1721338988618,0.839,3420.3,3419.9,2.272]
[1721338988981,0.06648744,3420.2,3419.9,2.272]
[1721338990115,0.06648744,3420.2,3419.9,5.19605]
[1721338990277,0.06648744,3420.2,3420.0,2.3783]
[1721338991806,0.839,3420.1,3420.0,2.3783]
[1721338992285,0.90533498,3420.1,3420.0,2.3783]
[1721338992719,0.90533498,3420.1,3419.9,2.271]
[1721338992926,0.839,3420.0,3419.9,2.271]
[1721338993327,0.90517877,3420.0,3419.9,2.271]
[1721339010820,0.90517877,3420.0,3419.6,2.92426]
[1721339011020,0.90517877,3420.0,3419.7,2.4527]
[1721339011724,0.839,3419.8,3419.7,2.4527]
[1721339012032,0.9014959,3419.8,3419.7,2.4527]
[1721339023263,0.9014959,3419.8,3419.4,5.84885]
[1721339023463,0.9014959,3419.8,3419.5,2.433]
[1721339026866,0.839,3419.6,3419.5,2.433]
[1721339027278,0.89588355,3419.6,3419.5,2.433]
[1721339030643,0.89588355,3419.6,3419.3,2.3457]
[1721339030844,0.839,3419.4,3419.3,2.3457]
[1721339031171,0.8938252,3419.4,3419.3,2.3457]
[1721339032878,0.0548252,3419.4,3419.3,2.3457]
[1721339033294,0.839,3419.6,3419.3,2.3457]
[1721339033446,0.05474053,3419.4,3419.3,2.3457]
[1721339033647,0.839,3419.6,3419.3,2.3457]
[1721339033847,0.05474053,3419.4,3419.3,2.3457]
[1721339034043,0.839,3419.6,3419.3,2.3457]
[1721339034286,0.05474053,3419.4,3419.3,2.3457]
[1721339034448,0.839,3419.6,3419.3,2.3457]
[1721339034644,0.0548334,3419.4,3419.3,2.3457]
[1721339034893,0.839,3419.6,3419.3,2.3457]